Cogmind - Beta 16 @@@ ROGUE MODE // 2025.11.11 @ 17:55:38 Player: Mozco Result: Destroyed by S-10 Pest with Light Assault Rifle Performance ------------- Evolutions (1) 500 Regions Visited (2) 400 Robots Destroyed (2) 10 Value Destroyed (68) 68 Prototype IDs (0) 0 Alien Tech Used (0) 0 Bonus (0) 0 TOTAL SCORE: 978 Bonus ------- None Cogmind --------- Core Integrity 0/400 Matter 300/300 Energy 100/100 System Corruption 0% Temperature Cool (0) Movement Walking (120) Location -9/Materials Parts ------- > --- POWER (1) -------- (None) > --- PROPULSION (3) --- Aluminum Leg > --- UTILITY (3) ------ Signal Interpreter > --- WEAPON (2) ------- (None) > --- INVENTORY (5) ---- Ion Engine Aluminum Leg Compact Wheel Compact Wheel VTOL Module Peak State ------------ > --- POWER ------------ (None) > --- PROPULSION ------- Light Treads Light Treads VTOL Module > --- UTILITY ---------- Sensor Array > --- WEAPON ----------- (None) > --- INVENTORY -------- Ion Engine Aluminum Leg Aluminum Leg Compact Wheel Compact Wheel [Rating: 5] Favorites ----------- Power Light Ion Engine Engine Light Ion Engine Propulsion Light Treads Treads Light Treads Leg Aluminum Leg Flight Unit VTOL Module Utility Small Storage Unit Device Sensor Array Storage Small Storage Unit Processor Signal Interpreter Weapon None Build | -11 -10 -9 ------- Run | Yrd Mat Mat Slots Evolved 2 | . . 2 Power . | . . . Propulsion 1 | . . 1 Utility 1 | . . 1 Weapon . | . . . Parts Attached 8 | 4 1 3 Power 1 | 1 . . Engine 1 | 1 . . Core . | . . . Reactor . | . . . Propulsion 4 | 2 . 2 Treads 2 | 2 . . Leg 1 | . . 1 Wheel . | . . . Hover . | . . . Flight 1 | . . 1 Utility 3 | 1 1 1 Device 1 | . 1 . Storage 1 | 1 . . Processor 1 | . . 1 Hackware . | . . . Protection . | . . . Artifact . | . . . Weapon . | . . . Energy Gun . | . . . Energy Cannon . | . . . Ballistic Gun . | . . . Ballistic Cannon . | . . . Launcher . | . . . Special Weapon . | . . . Impact Weapon . | . . . Slashing Weapon . | . . . Piercing Weapon . | . . . Special Melee Weapon . | . . . Unidentified Prototypes . | . . . Parts Lost 5 | . 1 4 Power 1 | . 1 . Propulsion 3 | . . 3 Utility 1 | . . 1 Weapon . | . . . Highest Loss Streak 4 | . 1 4 To Critical Strikes . | . . . Average Backups 4 | 3 5 5 Power . | . 1 1 Propulsion 3 | 2 4 4 Utility . | . . . Weapon . | . . . Tool/Special . | . . . Unused Backups 5 | 1 . 4 Power 1 | . . 1 Propulsion 3 | . . 3 Utility . | . . . Weapon 1 | 1 . . Tool/Special . | . . . Average Slot Usage (%) 48 | . 52 37 Engine 2 | . 3 . Treads 24 | . 28 16 Device 6 | . 6 8 Storage 12 | . 14 7 Peak Build Rating 5 | 4 4 5 Average Rating 3 | 3 3 3 On Entrance 2 | . 4 4 Avg Prop Armor Cover (%) 27 | . . 27 Naked Turns . | . . . Heaviest Build 8 | 8 8 6 Greatest Support 40 | 40 40 40 Greatest Overweight (x) . | . . . Average Overweight (x) . | . . . Largest Inventory Capacity 8 | 8 8 8 Average Capacity 7 | 6 8 7 Most Carried 6 | 6 5 5 Average Carried 4 | 3 5 4 Final Capacity 8 | 8 8 5 Final Carried 5 | 5 5 5 Class Distribution -------------------- 100% | Mutant Dominant Class ---------------- Mutant | -10/Materials Mutant | -9/Materials Resources | -11 -10 -9 ----------- Run | Yrd Mat Mat Matter Collected 251 | 240 . 11 Remotely . | . . . Salvage Created . | . . . Parts . | . . . Haulers Intercepted . | . . . Recyclers Shooed . | . . . Parts Field Recycled . | . . . Retrieved Matter . | . . . Parts Self-Destructed . | . . . Prevented . | . . . Parts Restored . | . . . Kills | -11 -10 -9 ------- Run | Yrd Mat Mat Combat Hostiles Destroyed 2 | . 2 . Melee 2 | . 2 . Classes Destroyed 1 | . 1 . Grunt 2 | . 2 . Best Kill Streak 1 | . 1 . Combat Bots Only 1 | . 1 . Max Kills in Single Turn 1 | . 1 . Gunslinging . | . . . Exploded . | . . . Melee 1 | . 1 . Uniques/NPCs Destroyed . | . . . Combat | -11 -10 -9 -------- Run | Yrd Mat Mat Hostile Shots Fired 141 | . 44 97 Missed 51 | . 14 37 Hits 90 | . 30 60 Projectile 90 | . 30 60 Critical Strikes 1 | . . 1 Damage Taken 969 | . 332 637 Core 465 | . 57 408 Absorbed by Shields . | . . . Core Remaining (%) 88 | 100 77 . Volleys Fired . | . . . Largest . | . . . Hottest . | . . . Shots Fired . | . . . Gun . | . . . Cannon . | . . . Launcher . | . . . Special . | . . . Kinetic . | . . . Thermal . | . . . Explosive . | . . . Electromagnetic . | . . . Robot Hit Streak . | . . . Robot Miss Streak . | . . . Penetration Max . | . . . Secondary Targets . | . . . Shots Hit Robots . | . . . Core Hits 6 | . 5 1 Critical Kills . | . . . Critical Parts Destroyed . | . . . Critical Strikes . | . . . Melee Attacks . | . . . Impact . | . . . Slashing . | . . . Piercing . | . . . Sneak Attacks . | . . . Combat Hostiles . | . . . Follow-up Attacks . | . . . Damage Inflicted 34 | . 28 6 Guns . | . . . Cannons . | . . . Explosions . | . . . Melee . | . . . Ramming 34 | . 28 6 Kinetic . | . . . Thermal . | . . . Explosive . | . . . Electromagnetic . | . . . Impact . | . . . Slashing . | . . . Piercing . | . . . Highest Corruption . | . . . Average Corruption . | . . . Corruption Purged . | . . . Corruption Blocked . | . . . Overload Shots . | . . . Overflow Damage . | . . . Projectiles . | . . . Explosions . | . . . Melee . | . . . Knockbacks . | . . . Impact . | . . . Kinetic . | . . . Secondary . | . . . Self-Inflicted Damage . | . . . Shots . | . . . Rammed 28 | . 28 . Targets Rammed 40 | . 30 10 Kicked 10 | . . 10 Crushed 2 | . 2 . Highest Temperature . | . . . Average Temperature . | . . . Received Heat Transfer 372 | . 180 192 Siege Activations . | . . . Martial Activations . | . . . Shielding Activations . | . . . Robots Disrupted . | . . . Combat Hostiles . | . . . Robots Corrupted . | . . . Combat Hostiles . | . . . Parts Fried . | . . . Impact Corruptions . | . . . Robots Melted . | . . . Combat Hostiles . | . . . Parts Melted . | . . . Heat Transferred . | . . . Parts Sabotaged . | . . . Parts Stolen . | . . . Parts Stripped . | . . . Power Chain Reactions . | . . . Alert | -11 -10 -9 ------- Run | Yrd Mat Mat Maximum Alert Level . | . . . Low Security (%) 100 | 100 100 100 Level 1 . | . . . Level 2 . | . . . Level 3 . | . . . Level 4 . | . . . Level 5 . | . . . High Security . | . . . Max Security . | . . . Peak Influence 145 | . 30 145 Initial . | . . . Average 4 | . 2 12 Influence Increases 224 | . 59 165 Destroy 0b10 Robot/C 40 | . 40 . Destroy Leader 10 | . 10 . Successful Hack 9 | . 9 . Lose Combat Pursuer 165 | . . 165 Influence Decreases 79 | . 59 20 Time Decay 59 | . 49 10 Lost Part 20 | . 10 10 Squads Dispatched 3 | . 2 1 Investigation 1 | . 1 . Extermination . | . . . Reinforcement 2 | . 1 1 Assault . | . . . Garrison . | . . . Intercept . | . . . Searches Triggered . | . . . Construction Impeded . | . . . Haulers Reinforced . | . . . Active Scanning Responses . | . . . Cargo Convoy Interrupts . | . . . Stealth | -11 -10 -9 --------- Run | Yrd Mat Mat Distress Signals 1 | . . 1 Communications Jammed . | . . . Distress Signals . | . . . Times Spotted 29 | . 10 19 Peak Tracking Total 18 | . 4 18 Tactical Retreats 2 | . . 2 Traps | -11 -10 -9 ------- Run | Yrd Mat Mat Traps Triggered 1 | . 1 . Indirectly . | . . . Trap Hack Attempts . | . . . Triggered . | . . . Disarmed . | . . . Reprogrammed . | . . . Reused . | . . . Traps Extracted . | . . . Installed . | . . . Triggered . | . . . Machines | -11 -10 -9 ---------- Run | Yrd Mat Mat Machines Disabled . | . . . Max in Single Turn . | . . . Machines Repaired . | . . . Machines Dismantled . | . . . Machines Sabotaged . | . . . Overloaded Fab Kills . | . . . Hacking | -11 -10 -9 --------- Run | Yrd Mat Mat Machines Accessed 3 | . 3 . Terminals 2 | . 2 . Fabricators . | . . . Repair Stations . | . . . Recycling Units 1 | . 1 . Scanalyzers . | . . . Garrison Access . | . . . Total Hacks 9 | . 9 . Successful 5 | . 5 . Failed 4 | . 4 . Catastrophic 1 | . 1 . Database Lockouts . | . . . Manual 6 | . 6 . Terminals 6 | . 6 . Fabricators . | . . . Repair Stations . | . . . Recycling Units 3 | . 3 . Scanalyzers . | . . . Garrison Access . | . . . Terminal Hacks . | . . . Fabricator Hacks . | . . . Repair Station Hacks . | . . . Recycling Unit Hacks 2 | . 2 . Report Inventory 1 | . 1 . Retrieve Components 1 | . 1 . Scanalyzer . | . . . Garrison Access Hacks . | . . . Unauthorized Hacks 3 | . 3 . Terminals 3 | . 3 . Assimilate 1 | . 1 . Botnet 2 | . 2 . Fabricators . | . . . Repair Stations . | . . . Recycling Units . | . . . Scanalyzers . | . . . Garrison Access . | . . . Data Cores Recovered . | . . . Used . | . . . Hacking Detections 3 | . 3 . Full Trace Events . | . . . Feedback Events . | . . . Feedback Blocked . | . . . Robot Schematics Acquired . | . . . Robots Built . | . . . Authchips . | . . . Time . | . . . Total Robot Build Rating . | . . . Part Schematics Acquired . | . . . Parts Built . | . . . Authchips . | . . . Time . | . . . Total Part Build Rating . | . . . Part Studies Acquired . | . . . Parts Repaired . | . . . Time . | . . . Parts Recycled . | . . . Recycled Matter . | . . . Retrieved Matter . | . . . Retrieved Components 2 | . 2 . Parts Scanalyzed . | . . . Part Schematics Acquired . | . . . Parts Damaged . | . . . Bothacking | -11 -10 -9 ------------ Run | Yrd Mat Mat Used RIF Installer . | . . . Robots Hacked . | . . . Non-combat . | . . . Combat . | . . . Robot Hacks Applied . | . . . Relay Couplers Released . | . . . Fabnet Peak Effective % . | . . . Robots Rewired . | . . . Allies Hacked . | . . . Hacks Repelled . | . . . Allies | -11 -10 -9 -------- Run | Yrd Mat Mat Total Allies . | . . . Largest Group . | . . . Highest-Rated Group . | . . . Highest-Rated Ally . | . . . Total Orders . | . . . Ally Attacks . | . . . Total Damage . | . . . Kills . | . . . Allies Corrupted . | . . . Allies Melted . | . . . Intel | -11 -10 -9 ------- Run | Yrd Mat Mat Active Infowar (turns) 430 | . 268 162 Sensors 430 | . 268 162 Robot Analysis Total . | . . . Derelict Logs Recovered . | . . . Drone Launches . | . . . Drone Recoveries . | . . . Exploration | -11 -10 -9 ------------- Run | Yrd Mat Mat Turns Passed 909 | 110 603 196 Spaces Moved 507 | 66 270 171 Core 40 | 6 . 34 Treads 412 | 60 270 82 Legs 2 | . . 2 Wheels . | . . . Hover . | . . . Flight 53 | . . 53 Fastest Speed 35 | 50 160 35 Average Speed 139 | 150 160 104 Slowest Speed 160 | 160 160 160 Overloaded Moves . | . . . Propulsion Burnouts . | . . . Robots Hopped 2 | . . 2 Potential Cave-ins . | . . . Cave-ins Triggered . | . . . Exploration Rate (%) 26 | 4 41 35 Regions Visited 2 Branch Regions . Pre-discovered Areas . | . . . Known Exits Taken . | . . . Unknown Exits Taken 2 | 1 1 . Scrap Searched . | . . . Spaces Dug . | . . . Terrain Destroyed . | . . . Melee . | . . . Projectile . | . . . AOE . | . . . Terrain Rammed . | . . . Walls Destroyed . | . . . Machines Disabled . | . . . Actions | -11 -10 -9 --------- Run | Yrd Mat Mat Total 683 | 76 423 184 Wait 123 | . 123 . Move 501 | 65 269 167 Hop 2 | . . 2 Pick Up 7 | 6 . 1 Fast Attach 7 | 4 1 2 Attach 1 | . . 1 Detach . | . . . Swap . | . . . Drop 2 | 1 . 1 Fire . | . . . Melee . | . . . Ram . | . . . Kick 10 | . . 10 Crush 30 | . 30 . Escape Stasis . | . . . Rewire . | . . . Trap . | . . . Miscellaneous . | . . . Route ------- -11/Scrapyard -10/Materials (discovered 2 exits: [*Mat] / [*Sub]) -9/Materials (discovered 1 exit: *Mat) History --------- Turn | Location | Event 3 | -11/Scrapyard | Discovered new exit (range 16) 111 | -11/Scrapyard | Entered Materials 302 | -10/Materials | Build established: Mutant 321 | -10/Materials | Discovered new exit (range 9) 690 | -10/Materials | Discovered new exit (range 5) 714 | -10/Materials | Entered another Materials area 714 | -9/Materials | Evolved 2 slots: Propulsion x1, Utility x1 882 | -9/Materials | Core integrity fell below 50% 883 | -9/Materials | Discovered new exit (range 16) 891 | -9/Materials | Identified exit to Materials 905 | -9/Materials | Core integrity fell below 20% 908 | -9/Materials | Lost 4 parts (3n1u) 910 | -9/Materials | Destroyed by S-10 Pest with Light Assault Rifle Last Messages --------------- 00784_ ALERT: Hostiles spotted, dispatching reinforcements to Terminal M006. 00794_ K-01 Serf collects debris. 00846_ Dropped Sml. Storage Unit. 00846_ Acquired VTOL Module. 00849_ W-16 Scout sends out distress signal. 00849_ Lgt. Treads destroyed. 00860_ Acquired Signal Interpreter. 00872_ C-30 ARC bursts open, deploying its payload. 00872_ G-34 Mercenary unfolds itself. 00873_ G-34 Mercenary suffers critical hit (Burn). 00874_ Lgt. Treads destroyed. 00875_ Acquired 11 matter. 00876_ Sensor Array destroyed. 00877_ VTOL Module destroyed. 00883_ EXIT=FOUND 00891_ EXIT=IDENTIFIED: MATERIALS 00895_ Acquired VTOL Module. 00895_ Critical hit (Burn: +37). 00899_ Kicked S-10 Pest. Map ----- +----------------------------------------------------+ | | | | | | | | | | | | | | | | | | | | | ?????????????????????????????????????? | | ?????????????????????????????????????? | | ?????????????????????????????????????? | | ?????????????????????????????????????? | | ?????????????????????????????????????? | | ?????????????????????????????????????? | | ?????????????????????????????????????? | | ?????????????????????????????????????? | | ?????????????????????????????????????? | | ?????????????????????????????????????? | | ?????????????????????????????????????? | | ?????????????????????????###?????????? | | ????????????????????????##Y########??? | | ????????????????????##### #??? | | ????????????????????# #%s ] #??? | | ????????????????????# < #@% #??? | | ????????????????????# #ss ||| #??? | | ????????????????????# + || #??? | | ????????????????????# # || #??? | | ????????????????????# # #??? | | ????????????????????# # #??? | | ????????????????????# ###########??? | | ????????????????????# # #????? | | ????????????????????# # ! #????? | | ????????????????????# + | #????? | | ????????????????????# # !! #????? | | ????????????????????# # * #????? | | ????????????????????# #?#######????? | | ????????????????????# #??#######???? | | ????????????????????# #? ! #???? | | ????????????????????# #? #???? | | ######??????????????# # #???? | | #??????????????# # """ #???? | | #???????????#### + """ #???? | | ! #???????????# # """ #???? | | #???????????# # """ ????? | | #####???????# #? """ ?????? | | # ######### #? ?????? | | + #==!!!!## #??#+####????? | | # #==!!!!## #????????????? | +----------------------------------------------------+ Best States ------------- Heat Dissipation 28 Energy Generation 10 Energy Capacity 125 Matter Stores 300 Matter Capacity 300 Sight Range 16 Robot Scan Range 14 Terrain Scan Density 10 Evasion (%) 59 Recoil Reduction 2 Item Schematics ----------------- None Robot Schematics ------------------ None Fabricated ------------ Nothing Repaired ---------- Nothing Studied --------- None Alien Tech Used ----------------- None Achievements -------------- None Challenges ------------ None Game ------ Seed BeamThiefExtrapolator Manual? 0 Play Time 00:06:27 Cumulative 254.3 hours Start 2025.11.11 @ 17:50:48 End 2025.11.11 @ 17:55:38 Sessions 1 Manual Loads 0 Difficulty Rogue Special Mode None Game No. 258 Rogue 254 Adventurer 3 Explorer 1 Win Type - Total 1 Types 1/0/0/0/0/0/0/0/0/0 Lore% 77 Gallery% 75 Achievement% 59 Wizard Run 0 Options --------- Layout 0 ASCII 0 Keyboard 0 Movement Mouse Keybinds 0 Fullscreen 2 Font 18/SmallcapsGlow Map View 76x50 Zoom Use 0% Tactical HUD 1 Map Filters NONE Filters NONE Steam 1 RUN: ad6d14a9-cee4-4b71-ac61-5794a17121a7